bitfinex/quotes_BTCUSD_20220306
["timestamp","ask_amount","ask_price","bid_price","bid_amount"]
[1646544685592,0.00022422,39502.0,39495.0,0.29269776]
[1646544685792,0.00022422,39502.0,39496.0,0.367765]
[1646544686192,0.19559352,39503.0,39496.0,0.367765]
[1646544686592,0.00022422,39501.0,39496.0,0.367765]
[1646544687393,0.19559352,39503.0,39496.0,0.367765]
[1646544687693,0.15166641,39504.0,39496.0,0.367765]
[1646544687694,0.00022422,39500.0,39496.0,0.367765]
[1646544688648,0.50751696,39510.0,39496.0,0.367765]
[1646544688850,0.00022422,39500.0,39496.0,0.19177185]
[1646544689049,0.00022422,39500.0,39497.0,0.36775]
[1646544689848,0.70284781,39510.0,39497.0,0.36775]
[1646544690051,0.00022422,39500.0,39496.0,0.20441185]
[1646544690250,0.00022422,39500.0,39497.0,0.367749]
[1646544691050,0.70284781,39510.0,39497.0,0.367749]
[1646544691254,0.00022422,39500.0,39496.0,0.19177185]
[1646544691450,0.00022422,39500.0,39497.0,0.367749]
[1646544692296,0.49533085,39510.0,39499.0,0.063304]
[1646544692493,0.00022422,39500.0,39499.0,0.063304]
[1646544692693,0.00022422,39500.0,39498.0,0.241141]
[1646544693292,0.00022422,39500.0,39499.0,0.063304]
[1646544693496,0.40284781,39510.0,39499.0,0.063304]
[1646544693497,0.20751696,39510.0,39499.0,0.367738]
[1646544693695,0.00022422,39501.0,39500.0,0.0506]
[1646544693895,0.00022422,39501.0,39500.0,0.291721]
[1646544694094,0.00022422,39501.0,39500.0,0.42988416]
[1646544694693,0.16770856,39510.0,39500.0,0.42988416]
[1646544694694,0.16770856,39510.0,39500.0,0.40312328]
[1646544694899,0.16770856,39510.0,39503.0,0.17826362]
[1646544695095,0.16770856,39510.0,39504.0,0.0506]
[1646544696148,0.20751696,39512.0,39504.0,0.0506]
[1646544696149,0.00022419,39509.0,39504.0,0.0506]
[1646544696949,0.20751696,39511.0,39504.0,0.0506]
[1646544697246,0.0002242,39508.0,39504.0,0.0506]
[1646544698248,0.20751696,39512.0,39504.0,0.0506]
[1646544698448,0.0002242,39508.0,39504.0,0.0506]
[1646544699511,0.20751696,39512.0,39504.0,0.0506]
[1646544699710,0.0002242,39508.0,39504.0,0.0506]
[1646544700712,0.21028516,39509.0,39504.0,0.0506]
[1646544700912,0.0002242,39508.0,39504.0,0.0506]
[1646544701914,0.20751696,39512.0,39504.0,0.0506]
[1646544702112,0.0002242,39508.0,39504.0,0.0506]
[1646544703011,0.19783929,39510.0,39504.0,0.0506]
[1646544703249,0.0002242,39508.0,39504.0,0.0506]
[1646544704250,0.20751696,39511.0,39504.0,0.0506]
[1646544704451,0.0002242,39508.0,39504.0,0.0506]
[1646544705051,0.0002242,39508.0,39502.0,0.15335637]
[1646544705456,0.16207245,39510.0,39502.0,0.15335637]
[1646544705652,0.0002242,39507.0,39502.0,0.15335637]
[1646544706452,0.0002242,39507.0,39500.0,0.1162]
[1646544706653,0.16207245,39510.0,39500.0,0.1162]
[1646544706995,0.0002242,39506.0,39500.0,0.1162]
[1646544707594,0.0002242,39506.0,39502.0,0.18896153]
[1646544707791,0.36958941,39510.0,39502.0,0.18896153]
[1646544707995,0.15450424,39507.0,39502.0,0.18896153]
[1646544708192,0.00022421,39505.0,39500.0,0.1162]
[1646544708391,0.00022421,39505.0,39501.0,0.241116]
[1646544708991,0.15450424,39507.0,39501.0,0.241116]
[1646544709196,0.00022421,39505.0,39501.0,0.15927625]
[1646544709994,0.00022421,39505.0,39500.0,0.1162]
[1646544710193,0.15450424,39507.0,39500.0,0.1162]
[1646544710393,0.00022421,39505.0,39500.0,0.1162]
[1646544710748,0.00022421,39505.0,39501.0,0.241117]
[1646544710943,0.00022421,39505.0,39500.0,0.1162]
[1646544711147,0.00022421,39505.0,39501.0,0.241117]
[1646544711345,0.00022421,39505.0,39502.0,0.241111]
[1646544711546,0.15450424,39507.0,39500.0,0.1162]
[1646544711747,0.00022421,39504.0,39501.0,0.241117]
[1646544712047,0.00022421,39504.0,39500.0,0.1162]
[1646544712244,0.00022421,39504.0,39501.0,0.241117]
[1646544712646,0.15450424,39507.0,39501.0,0.241117]
[1646544712949,0.00022421,39504.0,39500.0,0.1162]
[1646544713746,0.00022421,39504.0,39501.0,0.241119]
[1646544713950,0.20751696,39508.0,39501.0,0.063299]
[1646544714149,0.00022421,39504.0,39503.0,0.241105]
[1646544714348,0.00022421,39504.0,39503.0,0.241104]
[1646544715001,0.15250021,39508.0,39503.0,0.241104]
[1646544715202,0.0002242,39505.0,39501.0,0.189893]
[1646544715400,0.0002242,39505.0,39502.0,0.241107]
[1646544715606,0.0002242,39505.0,39501.0,0.126594]
[1646544715800,0.0002242,39505.0,39502.0,0.24111]
[1646544716004,0.0002242,39505.0,39501.0,0.126594]
[1646544716201,0.20751696,39509.0,39502.0,0.24111]
[1646544716401,0.20751696,39509.0,39501.0,0.126594]
[1646544716402,0.00022421,39505.0,39501.0,0.126594]
[1646544716600,0.00022421,39505.0,39502.0,0.241107]
[1646544716802,0.00022421,39505.0,39501.0,0.128594]
[1646544717502,0.20751696,39509.0,39505.0,9.606e-05]
[1646544719053,0.20774115,39509.0,39505.0,9.606e-05]
[1646544719254,0.00022419,39509.0,39506.0,0.241085]
[1646544719452,0.00022419,39509.0,39506.0,0.45266561]
[1646544719952,0.20751696,39513.0,39506.0,0.21158061]
[1646544720154,0.00022419,39509.0,39506.0,0.21158061]
[1646544720354,0.00022419,39509.0,39507.0,0.241072]
[1646544720555,0.00022419,39509.0,39508.0,0.0506]
[1646544720754,0.00022419,39509.0,39508.0,0.291665]
[1646544720953,0.04,39514.0,39508.0,0.291665]
[1646544721159,0.04,39514.0,39508.0,0.0506]
[1646544721353,0.00022419,39510.0,39509.0,0.241055]
[1646544722302,0.04,39514.0,39509.0,0.241055]
[1646544722497,0.00022419,39511.0,39508.0,0.0506]
[1646544722696,0.00022419,39511.0,39509.0,0.241054]
[1646544723196,0.00022419,39511.0,39508.0,0.0506]
[1646544723397,0.50298428,39508.0,39507.0,0.241073]
[1646544723598,0.12331928,39508.0,39507.0,1.30535699]
[1646544723803,0.00022418,39512.0,39508.0,1.7719]
[1646544724000,0.00022418,39512.0,39509.0,0.71061839]
[1646544724200,0.00022418,39512.0,39509.0,0.81061839]
[1646544724401,0.00022418,39512.0,39511.0,0.19041297]
[1646544724700,0.039884,39514.0,39512.0,0.241033]
[1646544724897,0.039884,39514.0,39513.0,0.45432034]
[1646544725098,0.039884,39514.0,39513.0,0.40372034]
[1646544725297,0.039884,39514.0,39513.0,0.291625]
[1646544725498,0.039884,39514.0,39513.0,0.0506]
[1646544726150,0.039884,39514.0,39509.0,0.126549]
[1646544726354,0.15283945,39513.0,39509.0,0.126549]
[1646544727052,0.19889911,39514.0,39509.0,0.126549]
[1646544727250,0.30022418,39513.0,39508.0,0.0506]
[1646544727454,0.380396,39512.0,39507.0,0.1197]
[1646544727651,0.380396,39512.0,39505.0,0.00409606]
[1646544727952,0.30022418,39513.0,39505.0,0.00409606]
[1646544728151,0.16663652,39510.0,39505.0,9.606e-05]
[1646544728651,0.16686071,39510.0,39505.0,9.606e-05]
[1646544729251,0.00022419,39510.0,39505.0,9.606e-05]
[1646544729502,0.3,39513.0,39505.0,9.606e-05]
[1646544729700,0.0002242,39509.0,39505.0,9.606e-05]
[1646544730699,0.3,39513.0,39505.0,9.606e-05]
[1646544730902,0.0002242,39509.0,39505.0,9.606e-05]
[1646544731102,0.20229596,39508.0,39505.0,9.606e-05]
[1646544732203,0.3995001,39508.0,39505.0,9.606e-05]
[1646544732404,0.20252015,39508.0,39505.0,9.606e-05]
[1646544733006,0.20229596,39508.0,39505.0,9.606e-05]
[1646544733248,0.20252015,39508.0,39505.0,9.606e-05]
[1646544733649,0.19070959,39507.0,39505.0,9.606e-05]
[1646544735453,0.20229596,39508.0,39505.0,9.606e-05]
[1646544735652,0.20252016,39508.0,39505.0,9.606e-05]
[1646544736353,0.36179731,39508.0,39505.0,9.606e-05]
[1646544736757,0.36157311,39508.0,39505.0,9.606e-05]
[1646544737001,0.3617973,39508.0,39505.0,9.606e-05]
[1646544737802,0.36157311,39508.0,39505.0,9.606e-05]
[1646544738002,0.3617973,39508.0,39505.0,9.606e-05]
[1646544739002,0.36157311,39508.0,39505.0,9.606e-05]
[1646544739201,0.3617973,39508.0,39505.0,9.606e-05]
[1646544740202,0.36157311,39508.0,39505.0,9.606e-05]
[1646544740603,0.3617973,39508.0,39505.0,9.606e-05]
[1646544741444,0.36157311,39508.0,39505.0,9.606e-05]
[1646544741643,0.3617973,39508.0,39505.0,9.606e-05]
[1646544742643,0.36157311,39508.0,39505.0,9.606e-05]
[1646544742846,0.36181329,39508.0,39505.0,9.606e-05]
[1646544743847,0.36157311,39508.0,39505.0,9.606e-05]
[1646544744050,0.36181329,39508.0,39505.0,9.606e-05]
[1646544745098,0.36157311,39508.0,39505.0,9.606e-05]
[1646544745298,0.36181329,39508.0,39505.0,9.606e-05]
[1646544745803,0.20253614,39508.0,39505.0,9.606e-05]
[1646544746399,0.20229596,39508.0,39505.0,9.606e-05]
[1646544746701,0.20253631,39508.0,39505.0,9.606e-05]
[1646544747503,0.19188755,39506.0,39505.0,9.606e-05]
[1646544748553,0.87228355,39506.0,39505.0,9.606e-05]
[1646544752698,0.49188755,39506.0,39505.0,9.606e-05]
[1646544752897,0.87228355,39506.0,39505.0,9.606e-05]
[1646544758051,0.49188755,39506.0,39505.0,9.606e-05]
[1646544758852,0.87228355,39506.0,39505.0,9.606e-05]
[1646544762002,0.49188755,39506.0,39505.0,9.606e-05]
[1646544762202,0.3,39506.0,39505.0,9.606e-05]
[1646544762503,0.00023209,39507.0,39505.0,9.606e-05]
[1646544763103,0.20229596,39508.0,39505.0,9.606e-05]
[1646544763349,0.18523809,39507.0,39505.0,9.606e-05]
[1646544765554,0.380396,39506.0,39505.0,9.606e-05]
[1646544765751,0.380396,39507.0,39505.0,9.606e-05]
[1646544766852,0.54974287,39507.0,39505.0,9.606e-05]
[1646544768003,0.380396,39506.0,39505.0,9.606e-05]
[1646544768904,0.46934687,39507.0,39505.0,9.606e-05]
[1646544769105,0.380396,39506.0,39505.0,9.606e-05]
[1646544769404,0.3,39506.0,39505.0,9.606e-05]
[1646544770605,0.16934687,39507.0,39505.0,9.606e-05]
[1646544770606,0.16957158,39507.0,39505.0,9.606e-05]
[1646544771050,0.00022471,39507.0,39505.0,9.606e-05]
[1646544771450,0.20229596,39508.0,39505.0,9.606e-05]
[1646544771654,0.20252063,39508.0,39505.0,9.606e-05]
[1646544772253,0.21365591,39506.0,39505.0,9.606e-05]
[1646544773152,0.00022467,39507.0,39505.0,9.606e-05]
[1646544773752,0.380396,39506.0,39505.0,9.606e-05]
[1646544774253,0.20019869,39506.0,39505.0,9.606e-05]
[1646544775105,0.20229596,39508.0,39505.0,9.606e-05]
[1646544775306,0.38062017,39507.0,39505.0,9.606e-05]
[1646544775711,0.00022417,39507.0,39505.0,9.606e-05]
[1646544775912,0.380396,39506.0,39505.0,9.606e-05]
[1646544776108,0.00022417,39507.0,39505.0,9.606e-05]
[1646544776311,0.20229596,39508.0,39505.0,9.606e-05]
[1646544776508,0.00022417,39507.0,39505.0,9.606e-05]
[1646544777109,0.20383044,39506.0,39505.0,9.606e-05]
[1646544778010,0.00022417,39507.0,39505.0,9.606e-05]
[1646544778646,0.20229596,39508.0,39505.0,9.606e-05]
[1646544779047,0.20252035,39508.0,39505.0,9.606e-05]
[1646544779446,0.19703394,39507.0,39505.0,9.606e-05]
[1646544779847,0.20229596,39508.0,39505.0,9.606e-05]
[1646544780246,0.20252035,39508.0,39505.0,9.606e-05]
[1646544781053,0.20229596,39508.0,39505.0,9.606e-05]
[1646544781349,0.17600461,39507.0,39505.0,9.606e-05]
[1646544781750,0.20252035,39508.0,39505.0,9.606e-05]
[1646544782198,0.20229596,39508.0,39505.0,9.606e-05]
[1646544782598,0.20252014,39508.0,39505.0,9.606e-05]
[1646544783610,0.20229596,39508.0,39505.0,9.606e-05]
[1646544783799,0.20252014,39508.0,39505.0,9.606e-05]
[1646544784801,0.20229596,39508.0,39505.0,9.606e-05]
[1646544785002,0.20252014,39508.0,39505.0,9.606e-05]
[1646544785602,0.4006129,39508.0,39505.0,9.606e-05]
[1646544785853,0.40038872,39508.0,39505.0,9.606e-05]
[1646544786052,0.40061292,39508.0,39505.0,9.606e-05]
[1646544787057,0.40038872,39508.0,39505.0,9.606e-05]
[1646544787457,0.40061292,39508.0,39505.0,9.606e-05]
[1646544788156,0.40061292,39508.0,39499.0,0.18883247]
[1646544788358,0.40038872,39508.0,39499.0,0.18883247]
[1646544788559,0.40061292,39508.0,39499.0,0.18883247]
[1646544788763,0.40061292,39508.0,39498.0,0.063304]
[1646544789605,0.40038872,39508.0,39498.0,0.063304]
[1646544789804,0.00022475,39505.0,39500.0,0.1521041]
[1646544790903,0.00022475,39504.0,39500.0,0.1521041]
[1646544791409,0.00022475,39504.0,39499.0,0.241131]
[1646544791603,0.00022475,39504.0,39498.0,0.063304]
[1646544792005,0.39561347,39508.0,39498.0,0.063304]
[1646544792207,9.773e-05,39507.0,39498.0,0.063304]
[1646544792605,9.773e-05,39507.0,39500.0,0.19783601]
[1646544793251,0.19809276,39508.0,39500.0,0.19783601]
[1646544793451,0.00022471,39507.0,39500.0,0.19783601]
[1646544794352,0.19809276,39508.0,39500.0,0.19783601]
[1646544794554,0.00022471,39507.0,39500.0,0.19283601]
[1646544795554,0.19809276,39508.0,39500.0,0.19283601]
[1646544795754,0.00022471,39507.0,39500.0,0.19283601]
[1646544796656,0.19809276,39508.0,39500.0,0.19283601]
[1646544797102,0.00022467,39507.0,39500.0,0.19283601]
[1646544797903,0.19809276,39508.0,39499.0,0.001]
[1646544798206,0.17663259,39505.0,39499.0,0.001]
[1646544798805,0.17663259,39505.0,39497.0,0.063306]
[1646544799009,0.17663259,39505.0,39499.0,0.20291368]
[1646544801455,0.17663259,39505.0,39498.0,0.002]
[1646544801857,0.17663259,39505.0,39497.0,0.063306]
[1646544803058,0.17663259,39505.0,39498.0,0.241139]
[1646544803457,0.17663259,39505.0,39499.0,0.241132]
[1646544803657,0.17663259,39505.0,39500.0,0.19076504]
[1646544804605,0.00022467,39507.0,39500.0,0.19076504]
[1646544804802,0.30022467,39507.0,39500.0,0.19076504]
[1646544805001,0.00022467,39507.0,39500.0,0.19076504]
[1646544805202,0.19809276,39508.0,39500.0,0.19076504]
[1646544805403,0.00022467,39507.0,39500.0,0.19076504]
[1646544806005,0.16876084,39507.0,39500.0,0.19076504]
[1646544806406,0.16853617,39507.0,39500.0,0.19076504]
[1646544806606,0.16876084,39507.0,39500.0,0.19076504]
[1646544807606,0.16853617,39507.0,39500.0,0.19076504]
[1646544807807,0.16876033,39507.0,39500.0,0.19076504]
[1646544808649,0.16853617,39507.0,39500.0,0.19076504]
[1646544809152,0.16876033,39507.0,39499.0,0.002]
[1646544809457,0.46876033,39507.0,39499.0,0.002]
[1646544809654,0.67627729,39507.0,39497.0,0.063306]
[1646544809852,0.46853617,39507.0,39497.0,0.063306]
[1646544810152,0.16306939,39502.0,39497.0,0.063306]
[1646544810351,0.16306939,39502.0,39498.0,0.241136]
[1646544810551,0.1789199,39500.0,39496.0,0.01264]
[1646544810752,0.1789199,39500.0,39497.0,0.241147]
[1646544811454,0.1789199,39500.0,39497.0,0.40289685]
[1646544811650,0.1789199,39500.0,39497.0,0.241147]
[1646544812111,0.1789199,39500.0,39498.0,0.241143]
[1646544813308,0.18147648,39503.0,39496.0,0.01264]
[1646544814009,0.18147648,39503.0,39497.0,0.19520608]
[1646544814307,0.36259883,39503.0,39496.0,0.01264]
[1646544814508,0.36259883,39503.0,39495.0,0.129602]
[1646544814712,0.36259883,39503.0,39496.0,0.241154]
[1646544815108,0.36259883,39503.0,39497.0,0.21099438]
[1646544815308,0.36259883,39503.0,39495.0,0.129602]
[1646544815849,0.36252397,39503.0,39494.0,0.432845]
[1646544816256,0.36252397,39503.0,39495.0,0.241161]
[1646544816450,0.36252397,39503.0,39496.0,0.20688053]
[1646544817451,0.36252397,39503.0,39497.0,0.241148]
[1646544817650,0.36252397,39503.0,39496.0,0.20688053]
[1646544817852,0.36252397,39503.0,39497.0,0.241147]
[1646544818051,0.36252397,39503.0,39496.0,0.20688053]
[1646544818251,0.36252397,39503.0,39497.0,0.241147]
[1646544818451,0.36252397,39503.0,39496.0,0.20688053]
[1646544819252,0.36252397,39503.0,39495.0,0.241161]
[1646544819504,0.36252397,39503.0,39494.0,0.420205]
[1646544819704,0.36252397,39503.0,39495.0,0.241161]
[1646544820203,0.18112235,39503.0,39495.0,0.241161]
[1646544821209,0.15106125,39502.0,39498.0,0.241142]
[1646544821406,0.15106125,39502.0,39497.0,0.18837614]
[1646544821808,0.15106125,39502.0,39498.0,0.241142]
[1646544822009,0.18112235,39503.0,39499.0,0.241134]
[1646544822208,0.18112235,39503.0,39497.0,0.18837614]
[1646544823109,0.18112235,39503.0,39497.0,0.241147]
[1646544823355,0.18112235,39503.0,39496.0,0.003]
[1646544823556,0.18112235,39503.0,39495.0,0.241161]
[1646544824356,0.19515699,39502.0,39497.0,0.19189403]
[1646544824858,0.18112235,39503.0,39499.0,0.241134]
[1646544825057,0.18112235,39503.0,39497.0,0.19189403]
[1646544825260,0.18046187,39503.0,39498.0,0.304447]
[1646544825456,0.3,39507.0,39498.0,0.063306]
[1646544825657,0.20751696,39508.0,39498.0,0.063306]
[1646544825859,0.21188447,39506.0,39498.0,0.063306]
[1646544827704,0.30021129,39507.0,39498.0,0.063306]
[1646544828008,0.17407013,39506.0,39498.0,0.063306]
[1646544828804,0.17407013,39506.0,39497.0,0.19189403]
[1646544829006,0.17257958,39505.0,39497.0,0.19189403]
[1646544834362,0.17407013,39506.0,39497.0,0.25520003]
[1646544835620,0.20464912,39504.0,39497.0,0.063306]
[1646544836218,0.20464912,39504.0,39494.0,0.420205]
[1646544836620,0.20464912,39504.0,39496.0,0.16454323]
[1646544837019,0.20464912,39504.0,39494.0,0.420205]
[1646544837220,0.3,39503.0,39494.0,0.1936]
[1646544837426,0.21001034,39495.0,39494.0,0.1936]
[1646544837625,0.21001034,39495.0,39484.0,0.70415214]
[1646544837626,0.55379287,39493.0,39490.0,0.004]
[1646544837823,0.380396,39492.0,39490.0,0.004]
[1646544838256,0.87632788,39492.0,39486.0,0.0128757]
[1646544838459,0.380396,39491.0,39486.0,0.0128757]
[1646544838657,0.380396,39491.0,39485.0,0.5472222]
[1646544838858,0.18567434,39487.0,39485.0,0.4249222]
[1646544839060,0.18567434,39487.0,39486.0,0.00022568]
[1646544840059,0.18567434,39487.0,39485.0,0.4249222]
[1646544840060,0.18567434,39487.0,39485.0,0.42513975]
[1646544840262,0.18567434,39487.0,39485.0,0.00021755]
[1646544840460,0.2120425,39486.0,39485.0,0.00021755]
[1646544841064,0.2120425,39486.0,39484.0,0.03852872]
[1646544841361,0.2120425,39486.0,39484.0,0.03874635]
[1646544842123,0.2120425,39486.0,39484.0,0.00021763]
[1646544842329,0.18567434,39487.0,39482.0,0.01265]
[1646544842526,0.3,39492.0,39483.0,0.00021763]
[1646544843026,0.002,39491.0,39483.0,0.00021763]
[1646544843325,0.16652006,39487.0,39483.0,0.00021763]
[1646544843525,0.16652006,39487.0,39482.0,0.01265]
[1646544843730,0.16652006,39487.0,39485.0,0.0002097]
[1646544844830,0.3,39492.0,39484.0,0.063329]
[1646544845028,0.29,39492.0,39484.0,0.00320997]
[1646544845232,0.380396,39491.0,39484.0,0.00320997]
[1646544845429,0.3,39490.0,39484.0,0.00320997]
[1646544845627,0.55379287,39493.0,39484.0,0.00320997]
[1646544845628,0.380396,39491.0,39484.0,0.00320997]
[1646544845868,0.380396,39489.0,39484.0,0.003]
[1646544846066,0.3,39488.0,39484.0,0.003]
[1646544846272,0.380396,39487.0,39485.0,0.00020997]
[1646544846567,0.86926036,39486.0,39485.0,0.00020997]
[1646544846872,2.84063826,39486.0,39485.0,0.00020997]
[1646544847067,2.62601098,39486.0,39485.0,0.00020997]
[1646544847267,2.62601098,39486.0,39484.0,0.00021033]
[1646544847268,3.00640698,39486.0,39484.0,0.00021033]
[1646544847467,0.680396,39485.0,39484.0,0.00021033]
[1646544848065,0.3,39485.0,39484.0,0.00021033]
[1646544848264,0.680396,39485.0,39474.0,0.15284835]
[1646544848466,0.16807703,39478.0,39474.0,0.15284835]
[1646544848665,0.16807703,39478.0,39477.0,0.00084246]
[1646544849510,0.16807703,39478.0,39471.0,0.15732524]
[1646544849708,0.16807703,39478.0,39476.0,0.00021061]
[1646544850810,0.16807703,39478.0,39472.0,0.16670401]
[1646544851009,0.17524924,39480.0,39475.0,0.00021126]
[1646544851514,0.380396,39479.0,39475.0,0.00021126]
[1646544851912,0.380396,39479.0,39472.0,0.004]
[1646544851913,0.476776,39479.0,39472.0,0.004]
[1646544852114,0.476776,39479.0,39475.0,0.00021176]
[1646544852710,0.20561204,39476.0,39475.0,0.00021176]
[1646544852911,0.58600804,39476.0,39475.0,0.00021176]
[1646544853110,0.58600804,39476.0,39471.0,0.001]
[1646544853362,0.20561204,39476.0,39474.0,0.00021177]
[1646544853560,0.380396,39475.0,39474.0,0.00021177]
[1646544854265,0.20561204,39476.0,39471.0,0.001]
[1646544854463,0.17628842,39474.0,39471.0,0.001]
[1646544854662,0.17628842,39474.0,39473.0,0.0002117]
[1646544855561,0.17628842,39474.0,39471.0,0.001]
[1646544855762,0.17628842,39474.0,39472.0,0.00021161]
[1646544856364,0.17628842,39474.0,39467.0,0.00151161]
[1646544856365,0.55,39473.0,39467.0,0.00151161]
[1646544856767,0.17628842,39474.0,39467.0,0.00151161]
[1646544857007,0.17628842,39474.0,39468.0,0.005]
[1646544858307,0.17628842,39474.0,39467.0,0.00151161]
[1646544858308,0.17628842,39474.0,39469.0,0.0001278]
[1646544858708,0.20561204,39476.0,39469.0,0.0001278]
[1646544858911,0.380396,39483.0,39469.0,0.0001278]
[1646544859109,0.380396,39483.0,39467.0,0.00151161]
[1646544859311,0.380396,39483.0,39470.0,0.00022538]
[1646544859710,0.66881269,39483.0,39470.0,0.00022538]
[1646544860009,0.380396,39477.0,39470.0,0.00022538]
[1646544860213,0.21113244,39478.0,39470.0,0.00022538]
[1646544860410,0.21113244,39478.0,39467.0,0.30151161]
[1646544860609,0.21113244,39478.0,39470.0,0.00022539]
[1646544861756,0.21113244,39478.0,39470.0,0.00022453]
[1646544861961,0.17240992,39477.0,39470.0,0.00022453]
[1646544862756,0.17240992,39477.0,39467.0,0.46318953]
[1646544862959,0.17240992,39477.0,39470.0,0.00022452]
[1646544863958,0.17240992,39477.0,39467.0,0.00551161]
[1646544864359,0.17240992,39477.0,39470.0,0.00022452]
[1646544865205,0.17240992,39477.0,39468.0,0.15707619]
[1646544865406,0.17240992,39477.0,39470.0,0.00022485]
[1646544866205,0.3,39476.0,39470.0,0.00022485]
[1646544866407,0.3,39476.0,39467.0,0.00151161]
[1646544866708,0.17240992,39477.0,39470.0,0.00022485]
[1646544867606,0.17240992,39477.0,39467.0,0.21038909]
[1646544867806,0.17240992,39477.0,39470.0,0.00022485]
[1646544868459,0.12915,39484.0,39470.0,0.00022485]
[1646544868460,0.3,39483.0,39470.0,0.00022485]
[1646544868659,0.1165,39484.0,39473.0,0.063345]
[1646544869063,0.01265,39492.0,39474.0,0.58939781]
[1646544869264,0.41782469,39492.0,39481.0,0.24127]
[1646544869460,0.15920703,39490.0,39480.0,0.23379755]
[1646544869663,0.00022469,39492.0,39480.0,0.18319755]
[1646544869861,0.00022469,39492.0,39481.0,0.113932]
[1646544870066,0.55379287,39493.0,39482.0,0.241265]
[1646544870266,0.00022472,39492.0,39488.0,0.05601134]
[1646544870462,0.00022472,39492.0,39489.0,0.07317898]
[1646544871361,0.00022473,39492.0,39489.0,0.13649798]
[1646544871759,0.00022473,39492.0,39489.0,0.07317898]
[1646544872215,0.00022473,39492.0,39486.0,0.0506]
[1646544872411,0.55379287,39493.0,39487.0,0.073182]
[1646544872612,0.00022473,39492.0,39487.0,0.073182]
[1646544873410,0.00022473,39492.0,39488.0,0.073179]
[1646544873614,0.73922305,39493.0,39484.0,0.063324]
[1646544873811,0.00022473,39492.0,39485.0,0.073185]
[1646544874011,0.17255857,39492.0,39485.0,0.073185]
[1646544874213,0.00104128,39491.0,39485.0,0.073185]
[1646544875312,0.00104128,39491.0,39486.0,0.17137137]
[1646544875511,0.00104128,39491.0,39487.0,0.073183]
[1646544875761,0.00104128,39491.0,39486.0,0.17137137]
[1646544876261,0.00104128,39491.0,39487.0,0.073182]
[1646544876462,0.00104128,39491.0,39486.0,0.17137137]
[1646544876662,0.00104128,39491.0,39484.0,0.006]
[1646544876862,0.00104128,39491.0,39485.0,0.073189]
[1646544878666,0.00104128,39491.0,39484.0,0.063328]
[1646544878866,0.00104128,39491.0,39485.0,0.073188]
[1646544879367,0.00104128,39491.0,39487.0,0.17525129]
[1646544881415,0.00104128,39491.0,39488.0,0.07318]
[1646544881617,0.00104128,39491.0,39490.0,0.05387013]
[1646544881818,0.00104128,39491.0,39490.0,0.12704413]
[1646544882014,0.00104128,39491.0,39490.0,0.073174]
[1646544882215,0.00104128,39491.0,39490.0,0.123774]
[1646544882518,0.00104128,39491.0,39490.0,0.23519461]
[1646544883560,0.00104128,39491.0,39490.0,0.2351932]
[1646544884558,0.55379287,39493.0,39490.0,0.2351932]
[1646544884758,0.00024023,39492.0,39490.0,0.187091]
[1646544885560,0.55379287,39493.0,39490.0,0.187091]
[1646544885959,0.5540331,39493.0,39490.0,0.187091]
[1646544886560,0.5540331,39493.0,39490.0,0.113917]
[1646544886761,0.55379287,39493.0,39490.0,0.0506]
[1646544887207,0.5540331,39493.0,39490.0,0.0506]
[1646544888008,0.55379287,39493.0,39490.0,0.0506]
[1646544888309,0.55402433,39493.0,39490.0,0.0506]
[1646544888506,0.55402433,39493.0,39490.0,0.0456]
[1646544888909,0.55402433,39493.0,39487.0,0.32525129]
[1646544889109,0.55402433,39493.0,39488.0,0.073176]
[1646544889309,0.7217466,39493.0,39489.0,0.073176]
[1646544889510,0.7217466,39493.0,39487.0,0.1]
[1646544889511,0.72197806,39493.0,39487.0,0.1]
[1646544889711,0.72197806,39493.0,39486.0,0.073184]
[1646544889915,0.3,39492.0,39485.0,0.03817752]
[1646544890513,0.19497211,39489.0,39485.0,0.03817752]
[1646544890757,0.19497211,39489.0,39488.0,0.00025328]
[1646544890956,0.19497211,39489.0,39480.0,0.315]
[1646544890957,0.49497211,39489.0,39480.0,0.315]
[1646544891157,0.3,39488.0,39480.0,0.1224]
[1646544891359,0.19497211,39489.0,39480.0,0.1224]
[1646544891562,0.19497211,39489.0,39480.0,0.28260856]
[1646544892454,0.19497211,39489.0,39480.0,0.27760856]
[1646544892656,0.19497211,39489.0,39481.0,0.063333]
[1646544893155,0.3002241,39492.0,39481.0,0.063333]
[1646544893958,0.3,39492.0,39481.0,0.063333]
[1646544894158,0.17629927,39490.0,39481.0,0.063333]
[1646544894511,0.30022411,39492.0,39481.0,0.063333]
[1646544894712,0.00022411,39492.0,39481.0,0.063333]
[1646544894911,0.00022411,39492.0,39484.0,0.063328]
[1646544895312,0.18937837,39491.0,39484.0,0.063328]
[1646544895712,0.18937837,39491.0,39481.0,0.189984]
[1646544896514,0.18937837,39491.0,39483.0,0.19136071]
[1646544899869,0.00022455,39492.0,39483.0,0.19136071]
[1646544900072,0.55379287,39493.0,39486.0,0.063323]
[1646544900268,0.00022455,39492.0,39486.0,0.063323]
[1646544901272,0.55379287,39493.0,39486.0,0.063323]
[1646544901569,0.55379287,39493.0,39484.0,0.126644]
[1646544901570,0.00022455,39492.0,39484.0,0.126644]
[1646544902018,0.19928972,39490.0,39484.0,0.126644]
[1646544903015,0.19928972,39490.0,39483.0,0.19136071]
[1646544903318,0.19928972,39490.0,39481.0,0.126651]
[1646544903319,0.19928972,39490.0,39482.0,0.073191]
[1646544903516,0.19928972,39490.0,39481.0,0.126651]
[1646544903915,0.19928972,39490.0,39480.0,0.1174]
[1646544904117,0.19928972,39490.0,39481.0,0.15237507]
[1646544905214,0.19928972,39490.0,39480.0,0.1674]
[1646544905866,0.19928972,39490.0,39481.0,0.063333]
[1646544906461,0.19928972,39490.0,39483.0,0.20068417]
[1646544906863,0.19928972,39490.0,39480.0,0.1674]
[1646544907161,0.17743275,39486.0,39480.0,0.1204]
[1646544907362,0.17743275,39486.0,39480.0,0.003]
[1646544907562,0.17743275,39486.0,39481.0,0.073204]
[1646544907761,0.17743275,39486.0,39481.0,0.073203]
[1646544908162,0.19928972,39490.0,39481.0,0.073203]
[1646544908465,0.19928972,39490.0,39481.0,0.063333]
[1646544909063,0.30020989,39492.0,39481.0,0.063333]
[1646544909268,0.16349768,39490.0,39481.0,0.063333]
[1646544910136,0.35050181,39490.0,39481.0,0.063333]
[1646544910938,0.16349768,39490.0,39481.0,0.063333]
[1646544911146,0.16349768,39490.0,39484.0,0.053326]
[1646544912038,0.18257102,39489.0,39484.0,0.053326]
[1646544913038,0.16349768,39490.0,39484.0,0.053326]
[1646544914061,0.16615609,39489.0,39484.0,0.053326]
[1646544914460,0.16349768,39490.0,39484.0,0.053326]
[1646544915561,0.192393,39488.0,39484.0,0.053326]
[1646544915966,0.192393,39488.0,39485.0,0.073191]